lending/lending_fUSD_20240128
["ID","MTS","AMOUNT","RATE_DAILY","PERIOD"]
[312883163,1706401819857,-375.0,0.00052739,120]
[312883164,1706401819883,-150.93223157,0.00052748,30]
[312883165,1706401819911,-287.0,0.0005279,2]
[312883166,1706401819941,-1097.41,0.00052876,2]
[312883167,1706401819967,-500.0,0.00052876,31]
[312883168,1706401819991,-764.78,0.00052876,31]
[312883169,1706401820018,-500.0,0.00052876,31]
[312883170,1706401820044,-500.0,0.00052876,31]
[312883171,1706401820070,-648.19,0.00052876,2]
[312883172,1706401820097,-674.8,0.00052876,31]
[312883173,1706401820316,-1722.47,0.00052876,2]
[312883174,1706401820343,-500.0,0.00052876,15]
[312883175,1706401820369,-1639.47,0.00052876,2]
[312883176,1706401820414,-1000.0,0.00052876,2]
[312883177,1706401820440,-500.0,0.00052876,31]
[312883178,1706401820466,-500.0,0.00052876,2]
[312883179,1706401820495,-500.0,0.00052876,2]
[312883180,1706401820520,-500.0,0.00052876,31]
[312883181,1706401820547,-500.0,0.00052876,2]
[312883182,1706401820574,-500.0,0.00052876,31]
[312883183,1706401820601,-500.0,0.00052876,2]
[312883184,1706401820627,-1020.9,0.00052876,2]
[312883185,1706401820655,-1107.05,0.00052876,2]
[312883186,1706401820682,-1185.23,0.00052876,7]
[312883187,1706401820711,-500.0,0.00052876,31]
[312883188,1706401820742,-247.38603547,0.00052876,31]
[312883189,1706401820770,-1144.92,0.00052876,31]
[312883190,1706401820802,-1000.0,0.00052876,7]
[312883191,1706401820831,-575.78,0.00052876,31]
[312883192,1706401820862,-358.10775732,0.00052876,31]
[312883193,1706401820889,-500.0,0.00052876,31]
[312883194,1706401820924,-979.32,0.00052876,2]
[312883195,1706401820952,-711.37,0.00052876,31]
[312883196,1706401820981,-500.0,0.00052876,31]
[312883197,1706401821012,-500.0,0.00052876,31]
[312883198,1706401821040,-649.51,0.00052876,31]
[312883199,1706401821066,-1074.08,0.00052876,7]
[312883200,1706401821094,-640.38,0.00052876,31]
[312883201,1706401821121,-500.0,0.00052876,31]
[312883202,1706401821148,-500.08,0.00052876,31]
[312883203,1706401821175,-500.0,0.00052876,31]
[312883204,1706401821203,-878.07,0.00052876,31]
[312883205,1706401821229,-596.16,0.00052876,31]
[312883206,1706401821256,-540.20570194,0.00052876,7]
[312883207,1706401821282,-500.0,0.00052876,7]
[312883208,1706401821312,-500.0,0.00052876,31]
[312883209,1706401821338,-718.33,0.00052876,31]
[312883210,1706401821365,-500.0,0.00052876,31]
[312883211,1706401821391,-500.0,0.00052876,31]
[312883212,1706401821416,-3491.38,0.00052876,5]
[312883213,1706401821442,-652.89,0.00052876,31]
[312883214,1706401821467,-231.70025073,0.00052876,31]
[312883215,1706401821494,-2078.91,0.00052876,31]
[312883216,1706401821521,-500.0,0.00052876,31]
[312883217,1706401821549,-500.0,0.00052876,31]
[312883218,1706401821574,-500.0,0.00052876,31]
[312883219,1706401821601,-549.89,0.00052876,31]
[312883220,1706401821627,-500.0,0.00052876,31]
[312883221,1706401821653,-500.0,0.00052876,31]
[312883222,1706401821679,-500.0,0.00052876,31]
[312883223,1706401821706,-500.0,0.00052876,31]
[312883224,1706401821732,-500.0,0.00052876,31]
[312883225,1706401821757,-500.0,0.00052876,31]
[312883226,1706401821897,-500.0,0.00052876,31]
[312883227,1706401821926,-500.0,0.00052876,31]
[312883228,1706401821952,-500.0,0.00052876,31]
[312883229,1706401821979,-10398.4,0.00052876,31]
[312883230,1706401822006,-500.0,0.00052876,31]
[312883231,1706401822035,-500.0,0.00052876,31]
[312883232,1706401822061,-500.0,0.00052876,31]
[312883233,1706401822086,-500.0,0.00052876,31]
[312883234,1706401822113,-208.39664165,0.00052876,31]
[312883235,1706401822141,-2113.23,0.00052876,31]
[312883236,1706401822168,-444.43589841,0.00052876,31]
[312883237,1706401822195,-500.0,0.00052876,31]
[312883238,1706401822222,-500.0,0.00052876,31]
[312883239,1706401822248,-500.0,0.00052876,31]
[312883240,1706401822275,-500.0,0.00052876,31]
[312883241,1706401822302,-871.1,0.00052876,31]
[312883242,1706401822330,-500.0,0.00052876,31]
[312883243,1706401822358,-3979.01,0.00052876,5]
[312883244,1706401822383,-1367.78,0.00052876,31]
[312883245,1706401822408,-1000.0,0.00052876,7]
[312883246,1706401822434,-500.0,0.00052876,31]
[312883247,1706401822462,-152.0,0.0005288,5]
[312883248,1706401822489,-155.0,0.000529,120]
[312883249,1706401822515,-1000.0,0.00052955,45]
[312883250,1706401822542,-263.0,0.0005299,2]
[312883251,1706401822566,-10318.34783038,0.00053,2]
[312883252,1706401822591,-200.0,0.00053,120]
[312883253,1706401822615,-150.0,0.00053,9]
[312883254,1706401822640,-250.0,0.00053,44]
[312883255,1706401822664,-114203.41532394,0.00053,120]
[312883256,1706401822688,-302.0,0.0005309,2]
[312883257,1706401822712,-300.0,0.000531,30]
[312883258,1706401822737,-150.93223157,0.00053107,30]
[312883259,1706401822760,-1097.41,0.0005315,2]
[312883260,1706401822784,-500.0,0.0005315,31]
[312883261,1706401822809,-764.78,0.0005315,31]
[312883262,1706401822833,-500.0,0.0005315,31]
[312883263,1706401822857,-500.0,0.0005315,31]
[312883264,1706401822880,-648.19,0.0005315,2]
[312883265,1706401822903,-674.8,0.0005315,31]
[312883266,1706401822927,-1722.47,0.0005315,2]
[312883267,1706401822950,-500.0,0.0005315,15]
[312883268,1706401822975,-1639.47,0.0005315,2]
[312883269,1706401823002,-1000.0,0.0005315,2]
[312883270,1706401823027,-500.0,0.0005315,31]
[312883271,1706401823053,-157.6647173,0.0005315,2]
[312883272,1706401823076,-500.0,0.0005315,2]
[312883273,1706401823101,-500.0,0.0005315,31]
[312883274,1706401823125,-500.0,0.0005315,2]
[312883275,1706401823149,-500.0,0.0005315,31]
[312883276,1706401823173,-500.0,0.0005315,2]
[312883277,1706401823197,-1020.9,0.0005315,2]
[312883278,1706401823222,-1107.05,0.0005315,2]
[312883279,1706401823248,-1185.23,0.0005315,7]
[312883280,1706401823273,-500.0,0.0005315,31]
[312883281,1706401823301,-1144.92,0.0005315,31]
[312883282,1706401823326,-626.7815197,0.0005315,7]
[312883283,1706401823351,-575.78,0.0005315,31]
[312883284,1706401823378,-500.0,0.0005315,31]
[312883285,1706401823404,-979.32,0.0005315,2]
[312883286,1706401823430,-711.37,0.0005315,31]
[312883287,1706401823456,-500.0,0.0005315,31]
[312883288,1706401823481,-500.0,0.0005315,31]
[312883289,1706401823505,-649.51,0.0005315,31]
[312883290,1706401823528,-1074.08,0.0005315,7]
[312883291,1706401823554,-640.38,0.0005315,31]
[312883292,1706401823579,-500.0,0.0005315,31]
[312883293,1706401823603,-500.08,0.0005315,31]
[312883294,1706401823627,-500.0,0.0005315,31]
[312883295,1706401823651,-878.07,0.0005315,31]
[312883296,1706401823675,-596.16,0.0005315,31]
[312883297,1706401823699,-500.0,0.0005315,7]
[312883298,1706401823723,-500.0,0.0005315,31]
[312883299,1706401823746,-718.33,0.0005315,31]
[312883300,1706401823771,-500.0,0.0005315,31]
[312883301,1706401823795,-500.0,0.0005315,31]
[312883302,1706401823820,-3491.38,0.0005315,5]
[312883303,1706401823846,-652.89,0.0005315,31]
[312883304,1706401823869,-2078.91,0.0005315,31]
[312883305,1706401823896,-500.0,0.0005315,31]
[312883306,1706401823925,-500.0,0.0005315,31]
[312883307,1706401823950,-500.0,0.0005315,31]
[312883308,1706401823981,-549.89,0.0005315,31]
[312883309,1706401824010,-500.0,0.0005315,31]
[312883310,1706401824040,-500.0,0.0005315,31]
[312883311,1706401824066,-500.0,0.0005315,31]
[312883312,1706401824196,-500.0,0.0005315,31]
[312883313,1706401824220,-500.0,0.0005315,31]
[312883314,1706401824247,-500.0,0.0005315,31]
[312883315,1706401824273,-500.0,0.0005315,31]
[312883316,1706401824307,-500.0,0.0005315,31]
[312883317,1706401824333,-500.0,0.0005315,31]
[312883318,1706401824358,-10398.4,0.0005315,31]
[312883319,1706401824385,-500.0,0.0005315,31]
[312883320,1706401824413,-500.0,0.0005315,31]
[312883321,1706401824441,-500.0,0.0005315,31]
[312883322,1706401824467,-500.0,0.0005315,31]
[312883323,1706401824493,-2113.23,0.0005315,31]
[312883324,1706401824519,-500.0,0.0005315,31]
[312883325,1706401824545,-500.0,0.0005315,31]
[312883326,1706401824571,-500.0,0.0005315,31]
[312883327,1706401824598,-316.02209184,0.0005315,31]
[312883328,1706401824624,-871.1,0.0005315,31]
[312883329,1706401824650,-500.0,0.0005315,31]
[312883330,1706401824675,-3979.01,0.0005315,5]
[312883331,1706401824700,-1367.78,0.0005315,31]
[312883332,1706401824727,-1000.0,0.0005315,7]
[312883333,1706401824755,-500.0,0.0005315,31]
[312883334,1706401824780,-150.0,0.00053151,30]
[312883335,1706401824806,-150.0,0.00053151,30]
[312883336,1706401824832,-150.0,0.00053151,30]
[312883337,1706401824857,-150.0,0.00053151,30]
[312883338,1706401824881,-150.0,0.00053151,30]
[312883339,1706401824905,-150.0,0.00053151,30]
[312883340,1706401824929,-150.0,0.00053151,30]
[312883341,1706401824955,-150.0,0.00053151,30]
[312883342,1706401824981,-150.0,0.00053151,30]
[312883343,1706401825006,-150.0,0.00053151,30]
[312883344,1706401825030,-150.0,0.00053151,30]
[312883345,1706401825055,-150.0,0.00053151,30]
[312883346,1706401825079,-150.0,0.00053151,30]
[312883347,1706401825104,-161.32,0.00053192,2]
[312883348,1706401825129,-864.43443322,0.000532,2]
[312883349,1706401825154,-157.11,0.000532,7]
[312883350,1706401825178,-195.89112521,0.00053201,15]
[312883351,1706401825204,-1000.0,0.00053212,45]
[312883352,1706401825233,-300.0,0.000533,30]
[312883353,1706401825256,-437.69957167,0.0005331,2]
[312883354,1706401825282,-1000.0,0.00053354,45]
[312883355,1706401825307,-410.0,0.0005339,2]
[312883356,1706401825331,-1097.41,0.00053424,2]
[312883357,1706401825357,-500.0,0.00053424,31]
[312883358,1706401825380,-764.78,0.00053424,31]
[312883359,1706401825406,-500.0,0.00053424,31]
[312883360,1706401825432,-500.0,0.00053424,31]
[312883361,1706401825458,-648.19,0.00053424,2]
[312883362,1706401825483,-674.8,0.00053424,31]
[312883363,1706401825508,-1722.47,0.00053424,2]
[312883364,1706401825533,-500.0,0.00053424,15]
[312883365,1706401825561,-1639.47,0.00053424,2]
[312883366,1706401825588,-1000.0,0.00053424,2]
[312883367,1706401825613,-500.0,0.00053424,31]
[312883368,1706401825637,-500.0,0.00053424,2]
[312883369,1706401825663,-500.0,0.00053424,31]
[312883370,1706401825688,-500.0,0.00053424,2]
[312883371,1706401825714,-500.0,0.00053424,31]
[312883372,1706401825739,-500.0,0.00053424,2]
[312883373,1706401825764,-1020.9,0.00053424,2]
[312883374,1706401825790,-1107.05,0.00053424,2]
[312883375,1706401825815,-1185.23,0.00053424,7]
[312883376,1706401825841,-500.0,0.00053424,120]
[312883377,1706401825866,-535.8612713,0.00053424,120]
[312883378,1706401825892,-500.0,0.00053424,31]
[312883379,1706401825919,-1144.92,0.00053424,31]
[312883380,1706401825947,-575.78,0.00053424,31]
[312883381,1706401825971,-500.0,0.00053424,31]
[312883382,1706401825995,-979.32,0.00053424,2]
[312883383,1706401826022,-711.37,0.00053424,31]
[312883384,1706401826047,-500.0,0.00053424,31]
[312883385,1706401826073,-500.0,0.00053424,31]
[312883386,1706401826099,-649.51,0.00053424,31]
[312883387,1706401826124,-1074.08,0.00053424,7]
[312883388,1706401826150,-640.38,0.00053424,31]
[312883389,1706401826176,-500.0,0.00053424,31]
[312883390,1706401826201,-500.08,0.00053424,31]
[312883391,1706401826227,-500.0,0.00053424,31]
[312883392,1706401826252,-878.07,0.00053424,31]
[312883393,1706401826277,-596.16,0.00053424,31]
[312883394,1706401826301,-500.0,0.00053424,7]
[312883395,1706401826327,-500.0,0.00053424,31]
[312883396,1706401826354,-718.33,0.00053424,31]
[312883397,1706401826380,-500.0,0.00053424,31]
[312883398,1706401826516,-500.0,0.00053424,31]
[312883399,1706401826544,-3491.38,0.00053424,5]
[312883400,1706401826571,-652.89,0.00053424,31]
[312883401,1706401826598,-2078.91,0.00053424,31]
[312883402,1706401826625,-500.0,0.00053424,31]
[312883403,1706401826653,-500.0,0.00053424,31]
[312883404,1706401826679,-549.89,0.00053424,31]
[312883405,1706401826704,-500.0,0.00053424,31]
[312883406,1706401826730,-500.0,0.00053424,31]
[312883407,1706401826756,-500.0,0.00053424,31]
[312883408,1706401826782,-500.0,0.00053424,31]
[312883409,1706401826809,-500.0,0.00053424,31]
[312883410,1706401826835,-500.0,0.00053424,31]
[312883411,1706401826862,-500.0,0.00053424,31]
[312883412,1706401826886,-500.0,0.00053424,31]
[312883413,1706401826913,-500.0,0.00053424,31]
[312883414,1706401826941,-5535.74278136,0.00053424,2]
[312883415,1706401826967,-500.0,0.00053424,31]
[312883416,1706401826991,-10398.4,0.00053424,31]
[312883417,1706401827017,-500.0,0.00053424,31]
[312883418,1706401827043,-500.0,0.00053424,31]
[312883419,1706401827067,-500.0,0.00053424,31]
[312883420,1706401827092,-500.0,0.00053424,31]
[312883421,1706401827116,-2113.23,0.00053424,31]
[312883422,1706401827140,-500.0,0.00053424,31]
[312883423,1706401827166,-500.0,0.00053424,31]
[312883424,1706401827191,-500.0,0.00053424,31]
[312883425,1706401827217,-871.1,0.00053424,31]
[312883426,1706401827245,-500.0,0.00053424,31]
[312883427,1706401827271,-3979.01,0.00053424,5]
[312883428,1706401827299,-1367.78,0.00053424,31]
[312883429,1706401827324,-1000.0,0.00053424,7]
[312883430,1706401827351,-500.0,0.00053424,31]
[312883431,1706401827377,-157.0128,0.00053448,59]
[312883432,1706401827404,-150.93223157,0.00053465,31]
[312883433,1706401827430,-300.0,0.000535,30]
[312883434,1706401827456,-150.0,0.000535,10]
[312883435,1706401827484,-50000.0,0.00053555,14]
[312883436,1706401827509,-269.0,0.0005359,2]
[312883437,1706401827534,-285.63638614,0.00053598,52]
[312883438,1706401827562,-540.11701309,0.00053661,6]
[312883439,1706401827588,-1000.0,0.00053661,45]
[312883440,1706401827614,-774.58303212,0.00053661,6]
[312883441,1706401827640,-460.55337544,0.00053661,6]
[312883442,1706401827666,-576.47822359,0.00053661,6]
[312883443,1706401827691,-175.1911259,0.00053661,6]
[312883444,1706401827716,-296.47222691,0.00053661,6]
[312883445,1706401827743,-709.34598336,0.00053661,6]
[312883446,1706401827769,-1653.00751581,0.00053661,6]
[312883447,1706401827794,-1097.41,0.00053698,2]
[312883448,1706401827818,-500.0,0.00053698,31]
[312883449,1706401827843,-764.78,0.00053698,31]
[312883450,1706401827869,-388.23158907,0.00053698,31]
[312883451,1706401827893,-500.0,0.00053698,31]
[312883452,1706401827918,-648.19,0.00053698,2]
[312883453,1706401827947,-674.8,0.00053698,31]
[312883454,1706401827971,-1722.47,0.00053698,2]
[312883455,1706401827995,-500.0,0.00053698,15]
[312883456,1706401828019,-1639.47,0.00053698,2]
[312883457,1706401828044,-1000.0,0.00053698,2]
[312883458,1706401828068,-500.0,0.00053698,31]
[312883459,1706401828093,-500.0,0.00053698,2]
[312883460,1706401828121,-500.0,0.00053698,31]
[312883461,1706401828145,-500.0,0.00053698,2]
[312883462,1706401828169,-500.0,0.00053698,31]
[312883463,1706401828193,-500.0,0.00053698,2]
[312883464,1706401828216,-1020.9,0.00053698,2]
[312883465,1706401828239,-1107.05,0.00053698,2]
[312883466,1706401828263,-1185.23,0.00053698,7]
[312883467,1706401828287,-500.0,0.00053698,31]
[312883468,1706401828311,-1144.92,0.00053698,31]
[312883469,1706401828335,-575.78,0.00053698,31]
[312883470,1706401828359,-500.0,0.00053698,31]
[312883471,1706401828383,-979.32,0.00053698,2]
[312883472,1706401828408,-711.37,0.00053698,31]
[312883473,1706401828436,-500.0,0.00053698,31]
[312883474,1706401828463,-500.0,0.00053698,31]
[312883475,1706401828502,-649.51,0.00053698,31]
[312883476,1706401828527,-1074.08,0.00053698,7]
[312883477,1706401828557,-640.38,0.00053698,31]
[312883478,1706401828583,-500.0,0.00053698,31]
[312883479,1706401828609,-500.08,0.00053698,31]
[312883480,1706401828634,-500.0,0.00053698,31]
[312883481,1706401828779,-878.07,0.00053698,31]
[312883482,1706401828847,-596.16,0.00053698,31]
[312883483,1706401828878,-500.0,0.00053698,7]
[312883484,1706401828903,-500.0,0.00053698,31]
[312883485,1706401828929,-718.33,0.00053698,31]
[312883486,1706401828954,-500.0,0.00053698,31]
[312883487,1706401828979,-500.0,0.00053698,31]
[312883488,1706401829004,-3491.38,0.00053698,5]
[312883489,1706401829030,-652.89,0.00053698,31]
[312883490,1706401829055,-2078.91,0.00053698,31]
[312883491,1706401829080,-500.0,0.00053698,31]
[312883492,1706401829104,-500.0,0.00053698,31]
[312883493,1706401829129,-549.89,0.00053698,31]
[312883494,1706401829152,-500.0,0.00053698,31]
[312883495,1706401829177,-291.08,0.00053698,31]
[312883496,1706401829201,-500.0,0.00053698,31]
[312883497,1706401829226,-500.0,0.00053698,31]
[312883498,1706401829252,-500.0,0.00053698,31]
[312883499,1706401829277,-500.0,0.00053698,31]
[312883500,1706401829304,-500.0,0.00053698,31]
[312883501,1706401829333,-500.0,0.00053698,31]
[312883502,1706401829361,-500.0,0.00053698,31]
[312883503,1706401829386,-500.0,0.00053698,31]
[312883504,1706401829411,-10398.4,0.00053698,31]
[312883505,1706401829436,-500.0,0.00053698,31]
[312883506,1706401829461,-500.0,0.00053698,31]
[312883507,1706401829487,-500.0,0.00053698,31]
[312883508,1706401829513,-500.0,0.00053698,31]
[312883509,1706401829538,-2113.23,0.00053698,31]
[312883510,1706401829565,-500.0,0.00053698,31]
[312883511,1706401829592,-500.0,0.00053698,31]
[312883512,1706401829617,-500.0,0.00053698,31]
[312883513,1706401829642,-871.1,0.00053698,31]
[312883514,1706401829670,-500.0,0.00053698,31]
[312883515,1706401829694,-3979.01,0.00053698,5]
[312883516,1706401829719,-1367.78,0.00053698,31]
[312883517,1706401829744,-1000.0,0.00053698,7]
[312883518,1706401829770,-500.0,0.00053698,31]
[312883519,1706401829796,-150.0,0.00053699,30]
[312883520,1706401829821,-150.0,0.00053699,30]
[312883521,1706401829846,-150.0,0.00053699,30]
[312883522,1706401829870,-150.0,0.00053699,30]
[312883523,1706401829896,-150.0,0.00053699,30]
[312883524,1706401829922,-150.0,0.00053699,30]
[312883525,1706401829950,-150.0,0.00053699,30]
[312883526,1706401829976,-150.0,0.00053699,30]
[312883527,1706401830001,-150.0,0.00053699,30]
[312883528,1706401830026,-150.0,0.00053699,30]
[312883529,1706401830050,-150.0,0.00053699,30]
[312883530,1706401830075,-150.0,0.00053699,30]
[312883531,1706401830098,-150.0,0.00053699,30]
[312883532,1706401830122,-150.0,0.00053699,30]
[312883533,1706401830147,-308.73,0.00053699,30]
[312883534,1706401830171,-300.0,0.000537,30]
[312883535,1706401830196,-239.0,0.0005373,2]
[312883536,1706401830227,-1000.0,0.00053746,45]
[312883537,1706401830255,-1000.0,0.00053746,45]
[312883538,1706401830285,-1000.0,0.00053746,45]
[312883539,1706401830313,-2213.09581784,0.00053746,6]
[312883540,1706401830345,-802.34026175,0.00053746,6]
[312883541,1706401830374,-150.93223157,0.00053824,31]
[312883542,1706401830403,-1236.0,0.0005389,2]
[312883543,1706401830432,-500.0,0.000539,30]
[312883544,1706401830458,-236.0,0.000539,120]
[312883545,1706401830485,-217.794476,0.00053905,30]
[312883546,1706401830511,-285.6363861,0.00053924,52]
[312883547,1706401830537,-1327.3730374,0.00053963,2]
[312883548,1706401830563,-32468.9657208,0.00053963,2]
[312883549,1706401830589,-5697.5829873,0.00053963,2]
[312883550,1706401830615,-1097.41,0.00053972,2]
[312883551,1706401830640,-500.0,0.00053972,31]
[312883552,1706401830665,-764.78,0.00053972,31]
[312883553,1706401830692,-500.0,0.00053972,31]
[312883554,1706401830717,-648.19,0.00053972,2]
[312883555,1706401830743,-674.8,0.00053972,31]
[312883556,1706401830768,-1722.47,0.00053972,2]
[312883557,1706401830794,-500.0,0.00053972,15]
[312883558,1706401830820,-1639.47,0.00053972,2]
[312883559,1706401830847,-1000.0,0.00053972,2]
[312883560,1706401830875,-500.0,0.00053972,31]
[312883561,1706401831051,-500.0,0.00053972,2]
[312883562,1706401831079,-500.0,0.00053972,31]
[312883563,1706401831104,-500.0,0.00053972,2]
[312883564,1706401831129,-500.0,0.00053972,31]
[312883565,1706401831152,-491.3476875,0.00053972,2]
[312883566,1706401831177,-1020.9,0.00053972,2]
[312883567,1706401831202,-1107.05,0.00053972,2]
[312883568,1706401831227,-1185.23,0.00053972,7]
[312883569,1706401831253,-500.0,0.00053972,31]
[312883570,1706401831278,-1144.92,0.00053972,31]
[312883571,1706401831305,-575.78,0.00053972,31]
[312883572,1706401831331,-500.0,0.00053972,31]
[312883573,1706401831356,-979.32,0.00053972,2]
[312883574,1706401831382,-711.37,0.00053972,31]
[312883575,1706401831408,-500.0,0.00053972,31]
[312883576,1706401831434,-500.0,0.00053972,31]
[312883577,1706401831462,-649.51,0.00053972,31]
[312883578,1706401831489,-1074.08,0.00053972,7]
[312883579,1706401831515,-640.38,0.00053972,31]
[312883580,1706401831541,-500.0,0.00053972,31]
[312883581,1706401831568,-500.08,0.00053972,31]
[312883582,1706401831594,-500.0,0.00053972,31]
[312883583,1706401831620,-878.07,0.00053972,31]
[312883585,1706401831646,-596.16,0.00053972,31]
[312883588,1706401831672,-500.0,0.00053972,7]
[312883592,1706401831698,-500.0,0.00053972,31]
[312883595,1706401831724,-718.33,0.00053972,31]
[312883599,1706401831750,-500.0,0.00053972,31]
[312883603,1706401831776,-500.0,0.00053972,31]
[312883605,1706401831802,-3491.38,0.00053972,5]
[312883607,1706401831827,-652.89,0.00053972,31]
[312883610,1706401831852,-2078.91,0.00053972,31]
[312883611,1706401831878,-500.0,0.00053972,31]
[312883612,1706401831903,-500.0,0.00053972,31]
[312883613,1706401831930,-549.89,0.00053972,31]
[312883614,1706401831959,-500.0,0.00053972,31]
[312883615,1706401831986,-500.0,0.00053972,31]
[312883616,1706401832010,-500.0,0.00053972,31]
[312883617,1706401832037,-500.0,0.00053972,31]
[312883618,1706401832062,-500.0,0.00053972,31]
[312883619,1706401832087,-500.0,0.00053972,31]
[312883620,1706401832113,-500.0,0.00053972,31]
[312883621,1706401832138,-500.0,0.00053972,31]
[312883622,1706401832164,-500.0,0.00053972,31]
[312883623,1706401832190,-10398.4,0.00053972,31]
[312883624,1706401832216,-500.0,0.00053972,31]
[312883625,1706401832241,-500.0,0.00053972,31]
[312883626,1706401832266,-500.0,0.00053972,31]
[312883627,1706401832293,-634.72926927,0.00053972,31]
[312883628,1706401832317,-2113.23,0.00053972,31]
[312883629,1706401832344,-500.0,0.00053972,31]
[312883630,1706401832371,-500.0,0.00053972,31]
[312883631,1706401832398,-500.0,0.00053972,31]
[312883632,1706401832426,-871.1,0.00053972,31]
[312883633,1706401832454,-500.0,0.00053972,31]
[312883634,1706401832479,-3979.01,0.00053972,5]
[312883635,1706401832504,-1367.78,0.00053972,31]
[312883636,1706401832528,-1111.51772875,0.00053972,7]
[312883637,1706401832554,-341.87198641,0.00053999,90]
[312883638,1706401832579,-5000.0,0.00054,2]
[312883639,1706401832603,-1818806.2345438,0.00054,4]
[312883640,1706401832628,-10013.1573219,0.00054,10]
[312883641,1706401832652,-344.93915878,0.00054,90]
[312883642,1706401832675,-216.58630405,0.00054,10]
[312883643,1706401832699,-1028.12181824,0.00054,120]
[312883644,1706401832725,-40056.401277,0.00054,120]
[312883645,1706401833171,-150.0,0.00050444,120]
[312883646,1706401833197,-150.0,0.00050444,120]
[312883647,1706401833223,-150.0,0.00050444,120]
[312883648,1706401833264,-150.0,0.00050444,120]
[312883649,1706401833290,-150.0,0.00050444,120]
[312883650,1706401833314,-150.0,0.00050444,120]
[312883651,1706401833856,-500.0,0.0003,2]
[312883652,1706401833866,-500.0,0.00046,2]
[312883653,1706401833875,-900.0,0.00050443,10]
[312883654,1706401833885,-1100.0,0.00050444,120]
[312883655,1706401833894,-878.0,0.0005099,2]
[312883656,1706401833903,-150.0,0.00051233,30]
[312883657,1706401833914,-551.39634085,0.00051948,120]
[312883658,1706401833927,-551.39634084,0.00052044,120]
[312883659,1706401833938,-551.39634084,0.0005214,120]
[312883660,1706401833947,-155.0,0.000526,2]
[312883661,1706401833956,-2109.4575872,0.00052601,4]
[312883662,1706401833966,-150.0,0.00052603,30]
[312883663,1706401833976,-3302.58843747,0.00053149,2]
[312883664,1706401833985,-717.0,0.0005315,7]
[312883665,1706401833994,-500.0,0.00053972,31]
[312883666,1706401834003,-28477.60846617,0.00054,31]
[312883667,1706401834019,-1816.01165128,0.00054,31]
[312883668,1706401834032,-1616.82159348,0.00054,31]
[312883669,1706401834045,-20583.49194519,0.00054,31]
[312883670,1706401834058,-1251.47,0.00054,31]
[312883671,1706401834071,-1000.0,0.00054,31]
[312883676,1706401837910,-163.78726489,0.0005,2]
[312883677,1706401837920,-894.24471011,0.00053697,2]
[312883678,1706401837935,-2408.34372736,0.00053697,2]
[312883679,1706401837944,-166.02288615,0.000539,2]
[312883680,1706401837953,-20170.63338649,0.00054,31]
[312883681,1706401837970,-1008.0,0.00054,31]
[312883682,1706401837983,-22447.0,0.00054,31]
[312883683,1706401837996,-60766.24537514,0.00054,31]
[312883684,1706401838008,-52532.77273838,0.00054,120]